[Event "*** SCC Grand Prix: Titled Tuesday Blitz"]
[Site "Chess.com"]
[Date "2020.08.25"]
[Round "10"]
[White "Legendinunknown"]
[Black "Kavyev_Ruslan"]
[Result "1-0"]
[WhiteElo "2667"]
[BlackElo "2501"]
[TimeControl "180+1"]
[EndTime "11:58:08 PDT"]
[Termination "Legendinunknown won by resignation"]

1. d4 {[%clk 0:03:00.9]} 1... Nf6 {[%clk 0:02:59.9]} 2. c4 {[%clk 0:03:00.7]}
2... g6 {[%clk 0:03:00.1]} 3. Nc3 {[%clk 0:03:00.7]} 3... d5 {[%clk 0:03:00.8]}
4. cxd5 {[%clk 0:03:00.1]} 4... Nxd5 {[%clk 0:03:01.7]} 5. e4 {[%clk 0:02:58]}
5... Nxc3 {[%clk 0:03:01.9]} 6. bxc3 {[%clk 0:02:58.7]} 6... Bg7 {[%clk
0:03:02.8]} 7. Bc4 {[%clk 0:02:57.6]} 7... c5 {[%clk 0:03:02.9]} 8. Ne2 {[%clk
0:02:58.1]} 8... Nc6 {[%clk 0:03:02.9]} 9. Be3 {[%clk 0:02:58.5]} 9... O-O
{[%clk 0:03:03]} 10. h4 {[%clk 0:02:57.6]} 10... cxd4 {[%clk 0:03:03]} 11. cxd4
{[%clk 0:02:56]} 11... Na5 {[%clk 0:03:03.6]} 12. Bd3 {[%clk 0:02:53.8]} 12...
Nc6 {[%clk 0:03:02.3]} 13. Bc4 {[%clk 0:02:50.5]} 13... Na5 {[%clk 0:03:01.3]}
14. Bd3 {[%clk 0:02:31.6]} 14... Nc6 {[%clk 0:03:00.4]} 15. Bc2 {[%clk
0:02:30.6]} 15... Nb4 {[%clk 0:02:27.9]} 16. Bb3 {[%clk 0:02:28.2]} 16... b5
{[%clk 0:02:26.3]} 17. h5 {[%clk 0:02:24.2]} 17... a5 {[%clk 0:02:23.9]} 18. a3
{[%clk 0:02:19.1]} 18... Nc6 {[%clk 0:02:21.2]} 19. hxg6 {[%clk 0:02:14.5]}
19... hxg6 {[%clk 0:02:21.1]} 20. f3 {[%clk 0:02:12.2]} 20... b4 {[%clk
0:02:14.7]} 21. Rc1 {[%clk 0:02:05.4]} 21... Bd7 {[%clk 0:02:02.6]} 22. Qd2
{[%clk 0:02:02.8]} 22... e6 {[%clk 0:01:05.9]} 23. Bh6 {[%clk 0:01:57.2]} 23...
Bh8 {[%clk 0:01:01.3]} 24. Bxf8 {[%clk 0:01:46.6]} 24... Qxf8 {[%clk 0:01:02.2]}
25. d5 {[%clk 0:01:36.1]} 25... exd5 {[%clk 0:01:00.9]} 26. Bxd5 {[%clk
0:01:37]} 26... Rc8 {[%clk 0:00:56.3]} 27. Qg5 {[%clk 0:01:32.8]} 27... Ne5
{[%clk 0:00:53.1]} 28. Rxh8+ {[%clk 0:01:28.5]} 28... Kxh8 {[%clk 0:00:51.2]}
29. Qxe5+ {[%clk 0:01:28.8]} 29... Kg8 {[%clk 0:00:51.7]} 30. Rxc8 {[%clk
0:01:27]} 30... Qxc8 {[%clk 0:00:52.6]} 31. Qf6 {[%clk 0:01:23.8]} 31... Be6
{[%clk 0:00:42.9]} 32. Bxe6 {[%clk 0:01:21.3]} 32... fxe6 {[%clk 0:00:43.3]} 33.
Qxg6+ {[%clk 0:01:21]} 33... Kh8 {[%clk 0:00:43.4]} 34. Qh5+ {[%clk 0:01:20.6]}
34... Kg8 {[%clk 0:00:43.6]} 35. Qxa5 {[%clk 0:01:20.1]} 1-0

[Event "*** SCC Grand Prix: Titled Tuesday Blitz"]
[Site "Chess.com"]
[Date "2020.08.25"]
[Round "10"]
[White "giantslayer83"]
[Black "Lion-Al-Messi"]
[Result "1-0"]
[WhiteElo "2711"]
[BlackElo "2571"]
[TimeControl "180+1"]
[EndTime "11:58:12 PDT"]
[Termination "giantslayer83 won by resignation"]

1. c4 {[%clk 0:03:00.4]} 1... b6 {[%clk 0:03:00.9]} 2. Nc3 {[%clk 0:02:59.6]}
2... Bb7 {[%clk 0:03:01.3]} 3. e4 {[%clk 0:03:00.1]} 3... e5 {[%clk 0:03:01.7]}
4. Nf3 {[%clk 0:03:00]} 4... Nc6 {[%clk 0:03:01]} 5. g3 {[%clk 0:02:57.1]} 5...
Bc5 {[%clk 0:02:59.3]} 6. Bg2 {[%clk 0:02:55.9]} 6... Nf6 {[%clk 0:02:57.8]} 7.
O-O {[%clk 0:02:55.7]} 7... O-O {[%clk 0:02:55]} 8. Nxe5 {[%clk 0:02:54.9]} 8...
Nxe5 {[%clk 0:02:48]} 9. d4 {[%clk 0:02:54.9]} 9... Nxc4 {[%clk 0:02:44.9]} 10.
dxc5 {[%clk 0:02:54.8]} 10... bxc5 {[%clk 0:02:45.8]} 11. Qb3 {[%clk 0:02:49.7]}
11... Nb6 {[%clk 0:02:45.7]} 12. a4 {[%clk 0:02:47.5]} 12... c4 {[%clk
0:02:42.3]} 13. Qc2 {[%clk 0:02:39]} 13... a5 {[%clk 0:02:41]} 14. Be3 {[%clk
0:02:38.2]} 14... d6 {[%clk 0:02:39.7]} 15. Rfd1 {[%clk 0:02:36]} 15... Qe7
{[%clk 0:02:38.9]} 16. e5 {[%clk 0:02:33.3]} 16... Qxe5 {[%clk 0:02:04.2]} 17.
Bxb7 {[%clk 0:02:31.6]} 17... Ng4 {[%clk 0:02:03.1]} 18. Bxb6 {[%clk 0:02:29]}
18... Rab8 {[%clk 0:01:45.7]} 19. Bd4 {[%clk 0:02:28.3]} 19... Qh5 {[%clk
0:01:45.5]} 20. Bg2 {[%clk 0:02:27.9]} 20... Qxh2+ {[%clk 0:01:43.3]} 21. Kf1
{[%clk 0:02:27.9]} 21... c5 {[%clk 0:01:43.3]} 22. Be3 {[%clk 0:02:20]} 22...
Nxe3+ {[%clk 0:01:43.5]} 23. fxe3 {[%clk 0:02:20.4]} 23... Qxg3 {[%clk
0:01:44.2]} 24. e4 {[%clk 0:02:12]} 24... f5 {[%clk 0:01:22.8]} 25. exf5 {[%clk
0:02:11.7]} 25... Qf4+ {[%clk 0:01:22.1]} 26. Qf2 {[%clk 0:02:08.7]} 26... Rxf5
{[%clk 0:01:10.2]} 27. Qxf4 {[%clk 0:02:06]} 27... Rxf4+ {[%clk 0:01:11.1]} 28.
Kg1 {[%clk 0:02:06.9]} 28... Rxb2 {[%clk 0:01:09.3]} 29. Ra2 {[%clk 0:01:58.7]}
29... Rb3 {[%clk 0:00:38.2]} 30. Ne4 {[%clk 0:01:56.5]} 30... Rd3 {[%clk
0:00:35.1]} 31. Rad2 {[%clk 0:01:51]} 31... Ra3 {[%clk 0:00:15.5]} 32. Rxd6
{[%clk 0:01:49.3]} 32... Rxa4 {[%clk 0:00:15.7]} 33. Ng5 {[%clk 0:01:43.9]}
33... g6 {[%clk 0:00:14.5]} 34. Rd8+ {[%clk 0:01:42.6]} 34... Rf8 {[%clk
0:00:13.3]} 35. Bd5+ {[%clk 0:01:42.4]} 35... Kg7 {[%clk 0:00:13.4]} 36. Ne6+
{[%clk 0:01:42.5]} 1-0

[Event "*** SCC Grand Prix: Titled Tuesday Blitz"]
[Site "Chess.com"]
[Date "2020.08.25"]
[Round "10"]
[White "j2806"]
[Black "anskam"]
[Result "1-0"]
[WhiteElo "2031"]
[BlackElo "1635"]
[TimeControl "180+1"]
[EndTime "11:58:14 PDT"]
[Termination "j2806 won by checkmate"]

1. e4 {[%clk 0:03:00.9]} 1... e5 {[%clk 0:02:56.3]} 2. Nf3 {[%clk 0:03:00.4]}
2... Nc6 {[%clk 0:02:55.3]} 3. Bb5 {[%clk 0:02:59.9]} 3... a6 {[%clk 0:02:54.8]}
4. Ba4 {[%clk 0:03:00.1]} 4... Nf6 {[%clk 0:02:54.7]} 5. d3 {[%clk 0:02:59.2]}
5... b5 {[%clk 0:02:54.2]} 6. Bb3 {[%clk 0:02:54]} 6... Be7 {[%clk 0:02:54.2]}
7. O-O {[%clk 0:02:50.7]} 7... O-O {[%clk 0:02:53.7]} 8. c3 {[%clk 0:02:51.1]}
8... d6 {[%clk 0:02:49.4]} 9. h3 {[%clk 0:02:51.2]} 9... Na5 {[%clk 0:02:48.3]}
10. Bc2 {[%clk 0:02:50.9]} 10... c5 {[%clk 0:02:47.9]} 11. Re1 {[%clk
0:02:50.7]} 11... h6 {[%clk 0:02:45.8]} 12. d4 {[%clk 0:02:50]} 12... cxd4
{[%clk 0:02:44.4]} 13. cxd4 {[%clk 0:02:50.6]} 13... exd4 {[%clk 0:02:44.1]} 14.
Nxd4 {[%clk 0:02:51.1]} 14... Nc4 {[%clk 0:02:43.6]} 15. Nc3 {[%clk 0:02:48.2]}
15... Bd7 {[%clk 0:02:39.9]} 16. b3 {[%clk 0:02:43.4]} 16... Ne5 {[%clk
0:02:36.1]} 17. Nf5 {[%clk 0:02:43.1]} 17... Bxf5 {[%clk 0:02:33.4]} 18. exf5
{[%clk 0:02:41.5]} 18... Rc8 {[%clk 0:02:30.8]} 19. Bb2 {[%clk 0:02:41.1]} 19...
Rc5 {[%clk 0:02:25]} 20. Ne4 {[%clk 0:02:38]} 20... Nxe4 {[%clk 0:02:23.7]} 21.
Bxe4 {[%clk 0:02:37.4]} 21... Qc7 {[%clk 0:02:20.3]} 22. f4 {[%clk 0:02:26.6]}
22... Nd7 {[%clk 0:02:13.8]} 23. Bd4 {[%clk 0:02:17.5]} 23... Nf6 {[%clk
0:02:05.5]} 24. Bxc5 {[%clk 0:02:16]} 24... Qxc5+ {[%clk 0:02:04.7]} 25. Kh1
{[%clk 0:02:14.3]} 25... Rc8 {[%clk 0:01:59.9]} 26. Bf3 {[%clk 0:02:08.5]} 26...
Qxf5 {[%clk 0:01:53.7]} 27. Rxe7 {[%clk 0:02:04.4]} 27... Qxf4 {[%clk
0:01:53.1]} 28. Qe2 {[%clk 0:01:58]} 28... d5 {[%clk 0:01:47]} 29. Rd1 {[%clk
0:01:54]} 29... Ne4 {[%clk 0:01:45.8]} 30. Bxe4 {[%clk 0:01:52.6]} 30... dxe4
{[%clk 0:01:45.2]} 31. Rxe4 {[%clk 0:01:52.7]} 31... Qg3 {[%clk 0:01:42]} 32.
Re8+ {[%clk 0:01:48.8]} 32... Rxe8 {[%clk 0:01:40.9]} 33. Qxe8+ {[%clk
0:01:49.4]} 33... Kh7 {[%clk 0:01:40.3]} 34. Qe4+ {[%clk 0:01:49.2]} 34... g6
{[%clk 0:01:36.9]} 35. Rf1 {[%clk 0:01:48.8]} 35... f5 {[%clk 0:01:35.1]} 36.
Qe7+ {[%clk 0:01:48.1]} 36... Kg8 {[%clk 0:01:34.6]} 37. Rd1 {[%clk 0:01:48.4]}
37... Qb8 {[%clk 0:01:13.7]} 38. Rd8+ {[%clk 0:01:45.2]} 38... Qxd8 {[%clk
0:01:13.1]} 39. Qxd8+ {[%clk 0:01:42.7]} 39... Kf7 {[%clk 0:01:12.5]} 40. Qb6
{[%clk 0:01:43.2]} 40... h5 {[%clk 0:01:08.9]} 41. Qxa6 {[%clk 0:01:43.5]} 41...
g5 {[%clk 0:01:08.1]} 42. Qxb5 {[%clk 0:01:43.8]} 42... Kf6 {[%clk 0:01:07.3]}
43. a4 {[%clk 0:01:43.2]} 43... g4 {[%clk 0:01:06.8]} 44. a5 {[%clk 0:01:43.3]}
44... Kg5 {[%clk 0:01:03.2]} 45. a6 {[%clk 0:01:42.6]} 45... Kf4 {[%clk
0:01:02.4]} 46. a7 {[%clk 0:01:42.2]} 46... h4 {[%clk 0:01:01.4]} 47. a8=Q
{[%clk 0:01:41.3]} 47... gxh3 {[%clk 0:01:01]} 48. Qf3+ {[%clk 0:01:39.5]} 48...
Kg5 {[%clk 0:00:58.9]} 49. Qbxf5+ {[%clk 0:01:37.1]} 49... Kh6 {[%clk
0:00:57.6]} 50. Q3h5+ {[%clk 0:01:35.1]} 50... Kg7 {[%clk 0:00:56.6]} 51. Qff7#
{[%clk 0:01:34.2]} 1-0

[Event "*** SCC Grand Prix: Titled Tuesday Blitz"]
[Site "Chess.com"]
[Date "2020.08.25"]
[Round "10"]
[White "Dannyyi"]
[Black "Angel_Hranitel_37"]
[Result "1-0"]
[WhiteElo "2385"]
[BlackElo "2433"]
[TimeControl "180+1"]
[EndTime "11:58:15 PDT"]
[Termination "Dannyyi won by checkmate"]

1. e4 {[%clk 0:03:00.9]} 1... c5 {[%clk 0:02:59.8]} 2. Nf3 {[%clk 0:02:50.9]}
2... e6 {[%clk 0:03:00]} 3. d4 {[%clk 0:02:37.2]} 3... cxd4 {[%clk 0:03:00.9]}
4. Nxd4 {[%clk 0:02:37.9]} 4... Nf6 {[%clk 0:03:00.8]} 5. Bd3 {[%clk 0:02:10.6]}
5... Nc6 {[%clk 0:03:00.5]} 6. Nxc6 {[%clk 0:02:06.4]} 6... bxc6 {[%clk
0:03:01.4]} 7. O-O {[%clk 0:02:04]} 7... e5 {[%clk 0:03:01.5]} 8. f4 {[%clk
0:02:01.8]} 8... Bd6 {[%clk 0:03:01.8]} 9. Bc4 {[%clk 0:01:57.7]} 9... Bc7
{[%clk 0:02:55.5]} 10. Nc3 {[%clk 0:01:53.4]} 10... O-O {[%clk 0:02:52.4]} 11.
fxe5 {[%clk 0:01:45.7]} 11... Bxe5 {[%clk 0:02:53.3]} 12. Bf4 {[%clk 0:01:43.3]}
12... Qb6+ {[%clk 0:02:33.7]} 13. Kh1 {[%clk 0:01:42.5]} 13... Bxf4 {[%clk
0:02:30.7]} 14. Rxf4 {[%clk 0:01:43.4]} 14... Qxb2 {[%clk 0:02:28.6]} 15. e5
{[%clk 0:01:41.4]} 15... Nh5 {[%clk 0:02:08.1]} 16. Rxf7 {[%clk 0:01:08.1]}
16... Rxf7 {[%clk 0:01:55.5]} 17. Bxf7+ {[%clk 0:01:09]} 17... Kxf7 {[%clk
0:01:56.2]} 18. Qxh5+ {[%clk 0:01:08.1]} 18... Ke7 {[%clk 0:01:51.9]} 19. Qg5+
{[%clk 0:00:52.8]} 19... Ke8 {[%clk 0:01:47.6]} 20. Rf1 {[%clk 0:00:50]} 20...
Ba6 {[%clk 0:01:31.7]} 21. Ne4 {[%clk 0:00:14.6]} 21... Bxf1 {[%clk 0:01:27.9]}
22. Nd6+ {[%clk 0:00:14.5]} 22... Kf8 {[%clk 0:01:28]} 23. Qf5+ {[%clk
0:00:14.3]} 23... Kg8 {[%clk 0:01:28.6]} 24. Qf7+ {[%clk 0:00:13.2]} 24... Kh8
{[%clk 0:01:28.5]} 25. Ne8 {[%clk 0:00:13.9]} 25... Bc4 {[%clk 0:01:19.3]} 26.
Qf8+ {[%clk 0:00:12.2]} 26... Bg8 {[%clk 0:01:19.3]} 27. Qxg7# {[%clk
0:00:13.1]} 1-0

[Event "*** SCC Grand Prix: Titled Tuesday Blitz"]
[Site "Chess.com"]
[Date "2020.08.25"]
[Round "10"]
[White "Brave_spirit12"]
[Black "TomasKapitanchuk"]
[Result "0-1"]
[WhiteElo "2519"]
[BlackElo "2410"]
[TimeControl "180+1"]
[EndTime "11:58:33 PDT"]
[Termination "TomasKapitanchuk won by resignation"]

1. e4 {[%clk 0:02:50.4]} 1... c5 {[%clk 0:02:59.7]} 2. c3 {[%clk 0:02:45.8]}
2... Nf6 {[%clk 0:02:59.5]} 3. e5 {[%clk 0:02:45.7]} 3... Nd5 {[%clk 0:03:00.1]}
4. d4 {[%clk 0:02:46.6]} 4... cxd4 {[%clk 0:03:01]} 5. cxd4 {[%clk 0:02:46.4]}
5... e6 {[%clk 0:03:01.4]} 6. Nf3 {[%clk 0:02:45.8]} 6... d6 {[%clk 0:03:01.2]}
7. Nc3 {[%clk 0:02:46]} 7... Nxc3 {[%clk 0:03:00.4]} 8. bxc3 {[%clk 0:02:46.9]}
8... Qc7 {[%clk 0:03:00.9]} 9. Bd2 {[%clk 0:02:46.6]} 9... Nd7 {[%clk
0:03:00.3]} 10. exd6 {[%clk 0:02:45.8]} 10... Bxd6 {[%clk 0:03:01.2]} 11. Bd3
{[%clk 0:02:46.6]} 11... O-O {[%clk 0:03:01]} 12. O-O {[%clk 0:02:46.2]} 12...
b6 {[%clk 0:03:01.2]} 13. Rc1 {[%clk 0:02:32.2]} 13... Bb7 {[%clk 0:03:00.2]}
14. h3 {[%clk 0:02:32.6]} 14... Nf6 {[%clk 0:02:58.8]} 15. c4 {[%clk 0:02:30.4]}
15... Rfd8 {[%clk 0:02:52.1]} 16. Bg5 {[%clk 0:02:27.4]} 16... Bf4 {[%clk
0:02:52.6]} 17. Bxf6 {[%clk 0:02:18.4]} 17... gxf6 {[%clk 0:02:51]} 18. Rc2
{[%clk 0:02:17.7]} 18... Rac8 {[%clk 0:02:44]} 19. g3 {[%clk 0:02:13.3]} 19...
Bh6 {[%clk 0:02:31.2]} 20. d5 {[%clk 0:01:54.6]} 20... Qd6 {[%clk 0:02:13.5]}
21. Be4 {[%clk 0:01:45.2]} 21... f5 {[%clk 0:02:07.8]} 22. Bd3 {[%clk 0:01:44]}
22... exd5 {[%clk 0:02:02.8]} 23. Bxf5 {[%clk 0:01:43.8]} 23... Rxc4 {[%clk
0:02:02.9]} 24. Nd4 {[%clk 0:01:36.4]} 24... Qe5 {[%clk 0:01:48.8]} 25. Qg4+
{[%clk 0:01:24.9]} 25... Bg7 {[%clk 0:01:43.4]} 26. Qh4 {[%clk 0:01:06.6]} 26...
Re8 {[%clk 0:01:30.3]} 27. Bxh7+ {[%clk 0:01:01.8]} 27... Kf8 {[%clk 0:01:27.4]}
28. Nf5 {[%clk 0:00:59.3]} 28... Rxh4 {[%clk 0:01:25.4]} 29. Nxh4 {[%clk
0:00:56.5]} 29... d4 {[%clk 0:01:22]} 30. Kh2 {[%clk 0:00:43.3]} 30... Bf6
{[%clk 0:01:15.7]} 31. f4 {[%clk 0:00:38.2]} 31... Qe2+ {[%clk 0:01:05.3]} 32.
Rxe2 {[%clk 0:00:34.5]} 32... Rxe2+ {[%clk 0:01:06.2]} 33. Kg1 {[%clk
0:00:34.9]} 33... d3 {[%clk 0:01:01.8]} 34. Bxd3 {[%clk 0:00:33.5]} 34... Bd4+
{[%clk 0:01:01.7]} 0-1

[Event "*** SCC Grand Prix: Titled Tuesday Blitz"]
[Site "Chess.com"]
[Date "2020.08.25"]
[Round "10"]
[White "Nemsko"]
[Black "jacky72"]
[Result "0-1"]
[WhiteElo "2354"]
[BlackElo "2526"]
[TimeControl "180+1"]
[EndTime "11:58:36 PDT"]
[Termination "jacky72 won on time"]

1. e4 {[%clk 0:02:57]} 1... a6 {[%clk 0:03:00.9]} 2. d4 {[%clk 0:02:56.8]} 2...
e6 {[%clk 0:03:01]} 3. Nc3 {[%clk 0:02:56.8]} 3... d5 {[%clk 0:03:01.9]} 4. e5
{[%clk 0:02:56]} 4... c5 {[%clk 0:03:02.2]} 5. Be3 {[%clk 0:02:55.5]} 5... Nc6
{[%clk 0:03:03.1]} 6. Nf3 {[%clk 0:02:55]} 6... b5 {[%clk 0:03:02.2]} 7. a3
{[%clk 0:02:50.3]} 7... Qb6 {[%clk 0:02:59.7]} 8. Ne2 {[%clk 0:02:43.3]} 8... c4
{[%clk 0:02:57.2]} 9. c3 {[%clk 0:02:42]} 9... a5 {[%clk 0:02:57.1]} 10. g4
{[%clk 0:02:31.9]} 10... Bb7 {[%clk 0:02:56.8]} 11. Bg2 {[%clk 0:02:31.4]} 11...
b4 {[%clk 0:02:57.1]} 12. axb4 {[%clk 0:02:30]} 12... axb4 {[%clk 0:02:56.9]}
13. O-O {[%clk 0:02:30.5]} 13... b3 {[%clk 0:02:56.7]} 14. Nd2 {[%clk
0:02:25.6]} 14... h5 {[%clk 0:02:53.2]} 15. g5 {[%clk 0:02:24.6]} 15... g6
{[%clk 0:02:52.7]} 16. f4 {[%clk 0:02:23]} 16... Nge7 {[%clk 0:02:52.9]} 17. h4
{[%clk 0:02:16.9]} 17... Nf5 {[%clk 0:02:52.2]} 18. Bf2 {[%clk 0:02:17.4]} 18...
Be7 {[%clk 0:02:52.6]} 19. Nf3 {[%clk 0:02:14.1]} 19... O-O {[%clk 0:02:53.5]}
20. Ng3 {[%clk 0:02:14.2]} 20... Nxg3 {[%clk 0:02:52.6]} 21. Bxg3 {[%clk
0:02:15.1]} 21... Rxa1 {[%clk 0:02:53]} 22. Qxa1 {[%clk 0:02:15.1]} 22... Ra8
{[%clk 0:02:53.9]} 23. Qb1 {[%clk 0:02:12.7]} 23... Ra2 {[%clk 0:02:54.8]} 24.
Bh3 {[%clk 0:02:10.1]} 24... Bc8 {[%clk 0:02:54.5]} 25. Ne1 {[%clk 0:01:49.3]}
25... Bd7 {[%clk 0:02:54.5]} 26. Bg2 {[%clk 0:01:42]} 26... Kf8 {[%clk
0:02:54.3]} 27. Bf3 {[%clk 0:01:41.4]} 27... Ke8 {[%clk 0:02:54.2]} 28. Rf2
{[%clk 0:01:37.1]} 28... Qa7 {[%clk 0:02:54]} 29. Qd1 {[%clk 0:01:32.6]} 29...
Ra1 {[%clk 0:02:54.2]} 30. Qe2 {[%clk 0:01:32.4]} 30... Qa2 {[%clk 0:02:55.1]}
31. Kh2 {[%clk 0:01:31.4]} 31... Rb1 {[%clk 0:02:51]} 32. f5 {[%clk 0:01:26.4]}
32... Qa1 {[%clk 0:02:46.1]} 33. Rg2 {[%clk 0:01:17.4]} 33... Kd8 {[%clk
0:02:46.3]} 34. f6 {[%clk 0:00:45.5]} 34... Bf8 {[%clk 0:02:45.8]} 35. Bxh5
{[%clk 0:00:45.6]} 35... gxh5 {[%clk 0:02:45.5]} 36. Qxh5 {[%clk 0:00:46.5]}
36... Be8 {[%clk 0:02:42]} 37. Qh8 {[%clk 0:00:45.7]} 37... Ba3 {[%clk
0:02:42.4]} 38. g6 {[%clk 0:00:40.8]} 38... Kc7 {[%clk 0:02:00.1]} 39. Qxe8
{[%clk 0:00:36.5]} 39... fxg6 {[%clk 0:01:59.7]} 40. f7 {[%clk 0:00:29.9]} 40...
Rxb2 {[%clk 0:01:59.6]} 41. Bf2 {[%clk 0:00:13.5]} 41... Rxf2 {[%clk 0:01:57.2]}
42. Rxf2 {[%clk 0:00:13.3]} 42... b2 {[%clk 0:01:58.1]} 43. Rxb2 {[%clk
0:00:12.7]} 43... Qxb2+ {[%clk 0:01:57.9]} 44. Ng2 {[%clk 0:00:13.1]} 44... Qxc3
{[%clk 0:01:58.8]} 45. Qxe6 {[%clk 0:00:06.3]} 45... Qxd4 {[%clk 0:01:58.3]} 46.
Qxg6 {[%clk 0:00:03.9]} 46... Qxe5+ {[%clk 0:01:58.6]} 47. Qg3 {[%clk
0:00:04.1]} 47... Qxg3+ {[%clk 0:01:57.5]} 48. Kxg3 {[%clk 0:00:05]} 48... c3
{[%clk 0:01:58.4]} 49. Ne3 {[%clk 0:00:05.4]} 49... d4 {[%clk 0:01:58.8]} 50.
Nc2 {[%clk 0:00:05.8]} 50... Bd6+ {[%clk 0:01:59.7]} 51. Kf3 {[%clk 0:00:05.5]}
51... d3 {[%clk 0:02:00.6]} 52. Ne3 {[%clk 0:00:03.3]} 52... c2 {[%clk
0:02:01.5]} 0-1

[Event "*** SCC Grand Prix: Titled Tuesday Blitz"]
[Site "Chess.com"]
[Date "2020.08.25"]
[Round "10"]
[White "Carnivoras"]
[Black "TigrVShlyape"]
[Result "0-1"]
[WhiteElo "2667"]
[BlackElo "2840"]
[TimeControl "180+1"]
[EndTime "11:58:40 PDT"]
[Termination "TigrVShlyape won by resignation"]

1. d4 {[%clk 0:03:00.9]} 1... Nf6 {[%clk 0:02:58.8]} 2. Nf3 {[%clk 0:03:01.1]}
2... g6 {[%clk 0:02:58.2]} 3. g3 {[%clk 0:03:01.7]} 3... Bg7 {[%clk 0:02:57.9]}
4. Bg2 {[%clk 0:03:02.6]} 4... O-O {[%clk 0:02:56.2]} 5. O-O {[%clk 0:03:03.5]}
5... d5 {[%clk 0:02:55.7]} 6. b3 {[%clk 0:03:03.2]} 6... c6 {[%clk 0:02:55.5]}
7. Bb2 {[%clk 0:03:03.6]} 7... Bf5 {[%clk 0:02:53.9]} 8. c4 {[%clk 0:03:03.3]}
8... Ne4 {[%clk 0:02:53.9]} 9. Nc3 {[%clk 0:03:02.8]} 9... Nxc3 {[%clk
0:02:52.9]} 10. Bxc3 {[%clk 0:03:03.7]} 10... Be4 {[%clk 0:02:53.2]} 11. Nd2
{[%clk 0:03:01]} 11... Bxg2 {[%clk 0:02:52.8]} 12. Kxg2 {[%clk 0:03:01.9]} 12...
e6 {[%clk 0:02:51.2]} 13. e4 {[%clk 0:02:59.7]} 13... c5 {[%clk 0:02:49.3]} 14.
exd5 {[%clk 0:02:36]} 14... exd5 {[%clk 0:02:44]} 15. Qf3 {[%clk 0:02:09.6]}
15... cxd4 {[%clk 0:01:53.3]} 16. Bb4 {[%clk 0:02:04.7]} 16... Re8 {[%clk
0:01:53.7]} 17. cxd5 {[%clk 0:02:01.7]} 17... Na6 {[%clk 0:01:54.2]} 18. a3
{[%clk 0:01:43.5]} 18... Nxb4 {[%clk 0:01:44.7]} 19. axb4 {[%clk 0:01:44.4]}
19... Re5 {[%clk 0:01:42.9]} 20. Rfe1 {[%clk 0:01:33.2]} 20... Rxd5 {[%clk
0:01:38.9]} 21. Nc4 {[%clk 0:01:18.9]} 21... b5 {[%clk 0:01:34.8]} 22. Na5
{[%clk 0:01:14.2]} 22... Qd7 {[%clk 0:01:32.2]} 23. Rac1 {[%clk 0:01:00]} 23...
Rf8 {[%clk 0:01:21.8]} 24. Rc5 {[%clk 0:00:56.1]} 24... Rd6 {[%clk 0:01:14.8]}
25. Nc6 {[%clk 0:00:51.9]} 25... Bf6 {[%clk 0:01:10.4]} 26. Ra1 {[%clk
0:00:27.2]} 26... d3 {[%clk 0:01:09.7]} 27. Rxa7 {[%clk 0:00:27]} 27... Qe6
{[%clk 0:01:09]} 28. Na5 {[%clk 0:00:02.2]} 28... d2 {[%clk 0:01:07.1]} 29. Qd1
{[%clk 0:00:02.7]} 29... Qe1 {[%clk 0:01:05.9]} 0-1

[Event "*** SCC Grand Prix: Titled Tuesday Blitz"]
[Site "Chess.com"]
[Date "2020.08.25"]
[Round "10"]
[White "topotun"]
[Black "Izoria123"]
[Result "0-1"]
[WhiteElo "2729"]
[BlackElo "2857"]
[TimeControl "180+1"]
[EndTime "11:58:41 PDT"]
[Termination "Izoria123 won on time"]

1. e4 {[%clk 0:03:00.9]} 1... Nc6 {[%clk 0:02:57.9]} 2. Nf3 {[%clk 0:03:00.7]}
2... d6 {[%clk 0:02:57.7]} 3. d4 {[%clk 0:02:59.5]} 3... Nf6 {[%clk 0:02:57.7]}
4. Nc3 {[%clk 0:02:59.4]} 4... g6 {[%clk 0:02:57.7]} 5. Bb5 {[%clk 0:02:48.3]}
5... a6 {[%clk 0:02:56.8]} 6. Bxc6+ {[%clk 0:02:48.2]} 6... bxc6 {[%clk
0:02:57.7]} 7. h3 {[%clk 0:02:47.4]} 7... Bg7 {[%clk 0:02:57.2]} 8. O-O {[%clk
0:02:47.2]} 8... O-O {[%clk 0:02:56.9]} 9. Re1 {[%clk 0:02:45.8]} 9... Nd7
{[%clk 0:02:34.5]} 10. Bg5 {[%clk 0:02:20.4]} 10... f6 {[%clk 0:02:32.3]} 11.
Be3 {[%clk 0:02:12.5]} 11... e5 {[%clk 0:02:31.5]} 12. Qe2 {[%clk 0:02:01.7]}
12... Nb6 {[%clk 0:02:29.7]} 13. Rad1 {[%clk 0:01:56.5]} 13... Rb8 {[%clk
0:02:15]} 14. b3 {[%clk 0:01:39.5]} 14... Qe8 {[%clk 0:02:10.6]} 15. Qd2 {[%clk
0:01:14.6]} 15... Be6 {[%clk 0:01:56.2]} 16. Bh6 {[%clk 0:01:09.3]} 16... Bxh6
{[%clk 0:01:46.5]} 17. Qxh6 {[%clk 0:01:08.8]} 17... a5 {[%clk 0:01:47.4]} 18.
Nh2 {[%clk 0:00:41.3]} 18... Qe7 {[%clk 0:01:41.4]} 19. f4 {[%clk 0:00:36.3]}
19... exd4 {[%clk 0:01:38.5]} 20. Rxd4 {[%clk 0:00:35.2]} 20... d5 {[%clk
0:01:39]} 21. f5 {[%clk 0:00:21.7]} 21... Bxf5 {[%clk 0:01:32.4]} 22. Qd2 {[%clk
0:00:17.9]} 22... dxe4 {[%clk 0:01:21.5]} 23. g4 {[%clk 0:00:18.4]} 23... c5
{[%clk 0:01:15.2]} 24. Rd5 {[%clk 0:00:14.1]} 24... Be6 {[%clk 0:01:05.5]} 25.
Rxe4 {[%clk 0:00:13.3]} 25... Nxd5 {[%clk 0:01:05.5]} 26. Nxd5 {[%clk
0:00:13.5]} 26... Qf7 {[%clk 0:01:06.4]} 27. Nf4 {[%clk 0:00:05.9]} 27... Rbe8
{[%clk 0:01:02.6]} 28. Qxa5 {[%clk 0:00:02]} 28... f5 {[%clk 0:01:02.5]} 0-1